[Event "7th Sharjah Masters 2024"]
[Site "Sharjah"]
[Date "2024.05.15"]
[Round "2.31"]
[White "Maurizzi, Marc`Andria"]
[Black "Dronavalli, Harika"]
[Result "1-0"]
[ECO "C83"]
[WhiteElo "2618"]
[BlackElo "2504"]
[Annotator "TA"]
[PlyCount "95"]
[EventDate "2024.05.13"]
[EventType "swiss"]
[EventCountry "UAE"]
[SourceTitle "playchess.com"]
[Source "ChessBase"]
[SourceQuality "1"]
[TimeControl "5400+30"]

{[%evp 46,95,29,31,73,48,62,-7,112,118,61,26,232,206,463,485,461,461,454,474,478,454,439,442,506,499,979,924,4890,5181,5233,5326,1631,11460,12823,12796,29986,29987,29988,29989,29991,29992,29992,29987,29989,29986,29986,29987,29987,29988,29988,29989]} 1. e4 {[%emt 1:31:00]} e5 {[%emt 1:31:00]} 2. Nf3 {[%emt 0:00:30]} Nc6 {[%emt 0:00:30]} 3. Bb5 {[%emt 0:00:30]} a6 {[%emt 0:00:30]} 4. Ba4 {[%emt 0:00:30]} Nf6 {[%emt 0:00:30]} 5. O-O {[%emt 0:00:30]} Nxe4 {[%emt 0:00:30]} 6. d4 {[%emt 0:00:30]} b5 {[%emt 0:00:30]} 7. Bb3 {[%emt 0:00:30]} d5 {[%emt 0:00:30]} 8. dxe5 {[%emt 0:00:30]} Be6 {[%emt 0:00:30]} 9. c3 {[%emt 0:00:30]} Be7 {[%emt 0:00:30]} 10. Bc2 {[%emt 0:00:30]} Bg4 {[%emt 0:00:30] Nowadays more popular than 10...0-0.} 11. Qe1 {[%emt 0:00:30]} Nc5 {[%emt 0:00:30]} 12. Nbd2 {[%emt 0:00:30]} Ne6 {[%emt 0:00:30] C83: Open Ruy Lopez: 9 c3 Be7.} 13. Nb3 $5 {[%emt 0:00:30][%mdl 4] A promising side line.} Bxf3 {[%emt 0:00:30]} 14. gxf3 {[%emt 0:00:30]} Bg5 {[%emt 0:00:30]} 15. Kh1 {[%emt 0:00:30]} Bxc1 {[%emt 0:00:30]} 16. Nxc1 $146 {[%emt 0:00:30]} ({Predecessor:} 16. Rxc1 Qg5 17. Rd1 O-O 18. Rg1 Qf4 19. Qe2 Rad8 20. Rde1 Ng5 21. Nd2 f5 22. exf6 Qxf6 {0-1 Zapata,A (2515)-Garcia,G (2400) COL m Columbia 1986}) 16... Qh4 17. Nd3 Rd8 18. Rg1 {[%emt 0:01:00]} Ne7 {[%emt 0:01:30]} 19. Rg4 {[%emt 0:00:30]} Qh5 {[%emt 0:00:30]} 20. Qe2 {[%emt 0:00:30]} c5 {[%emt 0:00:30]} 21. b4 {[%emt 0:00:30]} c4 {[%emt 0:00:30]} 22. Nc5 {[%emt 0:00:30]} Nxc5 {[%emt 0:00:30]} 23. bxc5 {[%emt 0:00:30]} Qh6 {[%emt 0:00:30]} 24. Rag1 {[%emt 0:00:30]} g6 {[%emt 0:00:30]} 25. f4 {[%emt 0:00:30]} Qf8 {[%emt 0:00:30]} 26. a4 {[%emt 0:00:30]} (26. f5 $14) 26... Nc6 {[%emt 0:00:30]} (26... d4 $11 {remains equal.} 27. Be4 dxc3 (27... bxa4 $2 28. Bc2 $18) 28. axb5 axb5) 27. axb5 $16 {[%emt 0:00:30]} axb5 {[%emt 0:00:30]} 28. f5 {[%emt 0:00:30]} d4 $2 {[%emt 0:00:30]} (28... Qxc5 $11 {and Black has nothing to worry.} 29. e6 f6) 29. e6 $18 {[%emt 0:00:30]} d3 $2 {[%emt 0:00:30]} (29... Qxc5 30. exf7+ Kf8 31. cxd4 (31. fxg6 hxg6 32. cxd4 Qe7 $18) 31... Nxd4) 30. exf7+ $18 {[%emt 0:00:30]} Kd7 {[%emt 0:00:30]} 31. Bxd3 {[%emt 0:00:30]} cxd3 {[%emt 0:00:30]} 32. Qxd3+ {[%emt 0:00:30]} Kc7 {[%emt 0:00:30]} 33. Qxb5 {[%emt 0:00:30]} (33. Qg3+ Kb7 34. fxg6 hxg6 35. Rxg6 Qxc5 $11 (35... Qxf7 $2 36. Rg7 $18)) 33... Rb8 {[%emt 0:00:30]} 34. Qc4 {[%emt 0:00:30]} Qe7 {[%emt 0:00:30]} 35. Re4 {[%emt 0:00:30]} Qd7 {[%emt 0:00:30]} (35... Qf6 $142 36. Qe6 Qxe6 37. fxe6 Ne7) 36. Re6 $18 {[%emt 0:00:30]} (36. fxg6 hxg6 37. Re6 (37. Rxg6 Rb1+ 38. Rg1 Rxg1+ 39. Kxg1 Rf8 $11) 37... Qd2 $18) 36... Rbd8 {[%emt 0:00:30]} 37. Qf4+ {[%emt 0:00:30]} Kc8 {[%emt 0:00:30]} 38. Qe4 {[%emt 0:00:30]} Nb8 {[%emt 0:00:30]} 39. c6 {[%emt 0:00:30]} Qxf7 {[%emt 0:00:30]} 40. Rb1 {[%emt 0:00:30]} ({Worse is} 40. fxg6 hxg6 41. Qe2 (41. Rexg6 {gets mated.} Rxh2+ 42. Kxh2 Qxf2+ 43. Kh3 Rh8+ 44. Kg4 Rh4+ 45. Kg5 Rxe4 46. Rg8+ Kc7 47. Rg4 Rxg4+ 48. Kxg4 Qg1+ 49. Kf5 Qxg8 50. Kf4 Nxc6 51. Kf3 Qc4 52. Kf2 Qxc3 53. Kg2 Nd4 54. Kh1 Qf3+ 55. Kh2 Nc2 56. Kg1 Ne3 57. Kh2 Qg2#) (41. Rgxg6 Qxf2 42. Rg2 Rxh2+ 43. Kxh2 Rh8+) 41... Rde8 42. Rxe8+ (42. Rgxg6 $2 {loses.} Qxg6 43. Rxg6 Rxe2 $19) 42... Rxe8 43. Qg4+ Qf5 44. Qxg6 Qf3+ 45. Qg2 Qxc6 $11 (45... Qxg2+ $2 46. Rxg2 Nxc6 47. h3 $19)) (40. f6 Rde8 41. c7 (41. Re7 Rxe7 42. fxe7 Re8 $15) 41... Nc6 (41... Rxe6 42. cxb8=Q+ Kxb8 43. Rb1+ Kc7 44. Qc4+ Kd8 45. Rb8+ Kd7 46. Rb7+ Kd6 47. Rb6+ Kd7 48. Qa4+ Kd8 49. Qa8+ Kd7 50. Qa7+ Ke8 51. Rb8#) (41... Qxe6 $2 42. cxb8=Q+ Kxb8 43. Rb1+ Kc7 44. Qb7+ Kd6 45. Qb6+ Ke5 46. Re1+ Kf5 47. Rxe6 $18) 42. Qxc6 (42. Rxe8+ Qxe8 43. Qc4 Kxc7 $11) 42... Qxe6 (42... Rxe6 $2 43. Qa8+ Kxc7 44. Qa7+ Kc6 45. Qxf7 $18) 43. Qa8+ Kxc7 (43... Kd7 44. Rd1+ Kxc7 45. Qa7+ Kc6 46. Qa6+ Kc5 47. Qa3+ Kc6 48. Qa6+ Kc7 49. Qa5+ Kc6 50. Qa6+ $11) 44. Qa7+ Kc6 45. Qa4+ Kc7 46. Qa7+ Kc6 47. Qa6+ Kc7 48. Qa7+ $11) 40... gxf5 {[%emt 0:00:30]} 41. Qe5 {[%emt 0:00:30]} Qc7 {[%emt 0:00:30]} 42. Qxf5 {[%emt 0:00:30]} Nd7 {[%emt 0:00:30]} 43. cxd7+ {[%emt 0:00:30]} Rxd7 {[%emt 0:00:30]} 44. Reb6 {[%emt 0:00:30]} Rhd8 {[%emt 0:00:30]} 45. R6b5 {[%emt 0:00:30]} Qc6+ {[%emt 0:00:30]} 46. f3 Kc7 {[%emt 0:00:30]} 47. Qe5+ {[%emt 0:01:00]} Rd6 48. Rc5 {[%emt 0:00:30]} 1-0

[Event "7th Sharjah Masters 2024"]
[Site "Sharjah"]
[Date "2024.05.15"]
[Round "2.32"]
[White "Cardoso Cardoso, Jose Gabriel"]
[Black "Yuffa, Daniil"]
[Result "0-1"]
[ECO "B33"]
[WhiteElo "2497"]
[BlackElo "2617"]
[Annotator "TA"]
[PlyCount "72"]
[EventDate "2024.05.13"]
[EventType "swiss"]
[EventCountry "UAE"]
[SourceTitle "playchess.com"]
[Source "ChessBase"]
[SourceQuality "1"]
[TimeControl "5400+30"]

{[%evp 20,72,14,16,8,20,14,14,14,10,9,16,25,14,20,9,20,10,12,3,16,-22,-25,0,-1,-43,-44,-54,0,-10,0,-35,-22,-33,10,16,8,0,0,0,40,22,30,57,34,22,16,0,0,-281,-283,-294,-294,-295,-294]} 1. e4 {[%emt 0:00:05]} c5 {[%emt 0:03:03]} 2. Nf3 {[%emt 0:00:15]} Nc6 {[%emt 0:00:32]} 3. d4 {[%emt 0:00:13]} cxd4 {[%emt 0:00:08]} 4. Nxd4 {[%emt 0:00:07]} Nf6 {[%emt 0:00:04]} 5. Nc3 {[%emt 0:00:11]} e5 {[%emt 0:00:05]} 6. Ndb5 {[%emt 0:00:13]} d6 {[%emt 0:00:08]} 7. Nd5 {[%emt 0:01:05]} Nxd5 {[%emt 0:00:07]} 8. exd5 {[%emt 0:00:05]} Ne7 {[%emt 0:00:11]} 9. c4 {[%emt 0:00:25]} Nf5 {[%emt 0:01:15]} 10. Bd3 {[%emt 0:01:38]} g6 {[%emt 0:02:28]} 11. O-O {[%emt 0:05:03][%cal Oc1g5]} a6 {[%emt 0:02:24]} 12. Nc3 {[%emt 0:00:39][%cal Bb5c3,Bc3e4,Be4d6][%mdl 32]} Bg7 {[%emt 0:00:15]} 13. a4 {[%emt 0:06:03]} O-O {[%emt 0:10:39] The position is equal.} 14. a5 {[%emt 0:01:49]} b5 {[%emt 0:01:30]} 15. axb6 {[%emt 0:19:08]} Qxb6 {[%emt 0:01:05]} 16. Ne4 {[%emt 0:01:59][%cal Ob2b4]} Nd4 {[%emt 0:11:02] [#]} 17. b4 $1 {[%emt 0:19:13]} f5 {[%emt 0:04:23]} (17... Qd8 18. Be3) 18. c5 {[%emt 0:00:10]} dxc5 {[%emt 0:00:18]} (18... Qxb4 $2 19. Ba3 (19. Nxd6 Qxc5 20. Ba3 Qc3 $15) 19... Qb3 20. Nxd6 $18) 19. bxc5 {[%emt 0:00:21]} Qa7 {[%emt 0:24:17]} 20. Nd6 {[%emt 0:03:58]} (20. d6 fxe4 21. Bxe4 (21. Bc4+ $2 Kh8 $19) 21... Bd7 $17) 20... Qxc5 {[%emt 0:05:07]} 21. Ba3 {[%emt 0:04:07]} Qc3 {[%emt 0:02:24]} 22. Nxc8 {[%emt 0:18:29]} (22. Nc4 $5 e4 23. Bxf8 Kxf8 24. Ra3 $11) 22... Rfxc8 {[%emt 0:00:58]} 23. Be7 $1 {[%emt 0:00:20][%cal Od5d6]} a5 {[%emt 0:17:47] ...e4 would now be deadly.} 24. d6 {[%emt 0:05:07] And now d7 would win.} Bf8 {[%emt 0:02:37]} 25. Bb5 {[%emt 0:03:36][%cal Bd3b5,Bb5a4,Ba4d7,Bd7c6][%mdl 32]} Kg7 {[%emt 0:04:19]} 26. Ba4 {[%emt 0:02:07]} Qc5 {[%emt 0:01:21]} (26... Bxe7 $6 27. dxe7 Qc5 28. e8=Q Rxe8 29. Bxe8 Rxe8 30. Qa4 $16) 27. Re1 {[%emt 0:03:09]} Rab8 $1 $132 {[%emt 0:01:34][%mdl 2048] Black puts up resistance} (27... Bxe7 28. dxe7 Kf6 (28... Qxe7 $2 29. Qxd4 exd4 30. Rxe7+ Kh6 31. Rd7 $18) 29. e8=R (29. e8=B Rxe8 30. Bxe8 Rxe8 $18) 29... Rxe8 30. Bxe8 Rxe8 31. Qa4 $16) 28. Bd7 {[%emt 0:01:32] A strong pair of Bishops.} Rd8 {[%emt 0:00:56]} 29. Rc1 {[%emt 0:00:57]} (29. Bxd8 Rxd8 30. Ba4 Bxd6 $15 (30... Qxd6 31. Rb1 $11)) 29... Qd5 {[%emt 0:00:52] [#] Dancing on a razor blade.} 30. Bc6 $1 {[%emt 0:01:06]} Qb3 $1 {[%emt 0:00:31]} 31. Qxb3 {[%emt 0:01:53]} Nxb3 {[%emt 0:00:33]} 32. Bxd8 {[%emt 0:00:51]} Rxd8 {[%emt 0:00:32]} 33. Rc3 {[%emt 0:00:31]} Nd4 {[%emt 0:00:16]} 34. Rxe5 $2 {[%emt 0:00:23][%mdl 8192]} (34. Rc4 $11 {and White is okay.} Bxd6 35. Rd1) 34... Bxd6 $19 {[%emt 0:00:22] Black has a decisive advantage.} 35. Ree3 {[%emt 0:00:35] [#]} ({Of course not} 35. Rxa5 Ne2+ 36. Kf1 Nxc3 $19) ({Not} 35. Re8 $2 Rxe8 36. Bxe8 Ne2+ 37. Kh1 Nxc3 $19) 35... Bb4 $1 {[%emt 0:00:32]} 36. Rcd3 {[%emt 0:00:36]} Nxc6 {[%emt 0:00:07] Weighted Error Value: White=0.20 (precise) /Black=0.11 (very precise) .  Loses game:     	White=1     	---        Inaccurate:     	White=3     	Black=3      OK:         	White=11    	Black=8      Best:        	White=1     	Black=2      Strong:       	White=1     	Black=3      Brilliant:      	White=1     	---} 0-1

[Event "7th Sharjah Masters 2024"]
[Site "Sharjah"]
[Date "2024.05.15"]
[Round "2.33"]
[White "Petrosyan, Manuel"]
[Black "Avila Pavas, Santiago"]
[Result "1-0"]
[ECO "B13"]
[WhiteElo "2618"]
[BlackElo "2516"]
[Annotator "RC"]
[PlyCount "175"]
[EventDate "2024.05.13"]
[EventType "swiss"]
[EventCountry "UAE"]
[SourceTitle "playchess.com"]
[Source "ChessBase"]
[SourceQuality "1"]
[TimeControl "5400+30"]

1. e4 {[%emt 0:01:47]} c6 {[%emt 0:00:45]} 2. d4 {[%emt 0:00:14]} d5 {[%emt 0:00:10]} 3. exd5 {[%emt 0:00:24]} cxd5 {[%emt 0:00:09]} 4. Bd3 {[%emt 0:00:04]} Nc6 {[%emt 0:00:30]} 5. c3 {[%emt 0:00:30]} Nf6 {[%emt 0:00:30]} 6. Bf4 {[%emt 0:00:30]} Bg4 {[%emt 0:00:30]} 7. Qb3 {[%emt 0:00:30]} e5 {[%emt 0:00:30]} 8. h3 {[%emt 0:00:30]} exf4 {[%emt 0:00:30]} 9. hxg4 {[%emt 0:00:30]} Qe7+ {[%emt 0:00:30]} 10. Kf1 {[%emt 0:00:30]} O-O-O {[%emt 0:00:30]} 11. Nd2 {[%emt 0:00:30]} g5 {[%emt 0:00:30]} 12. Ngf3 {[%emt 0:00:30]} h5 {[%emt 0:00:30]} 13. Qc2 {[%emt 0:00:30]} Bg7 {[%emt 0:00:30]} 14. Re1 {[%emt 0:00:30]} Qc7 {[%emt 0:00:30]} 15. gxh5 {[%emt 0:00:30]} g4 {[%emt 0:00:30]} 16. Ne5 {[%emt 0:00:30]} Kb8 {[%emt 0:00:30]} 17. Nxc6+ {[%emt 0:00:30]} Qxc6 {[%emt 0:00:30]} 18. Ke2 {[%emt 0:00:30]} Rxh5 {[%emt 0:00:30]} 19. Rxh5 {[%emt 0:00:30]} Nxh5 {[%emt 0:00:30]} 20. Kd1 {[%emt 0:00:30]} Re8 {[%emt 0:00:30]} 21. Rxe8+ {[%emt 0:00:30]} Qxe8 {[%emt 0:00:30]} 22. Nf1 {[%emt 0:00:30]} Bh6 {[%emt 0:00:30]} 23. Qe2 {[%emt 0:00:30]} Qxe2+ {[%emt 0:00:30]} 24. Bxe2 {[%emt 0:00:30]} f5 {[%emt 0:00:30]} 25. Bd3 {[%emt 0:00:30]} Ng7 {[%emt 0:00:30]} 26. f3 {[%emt 0:00:30]} g3 {[%emt 0:00:30]} 27. Nd2 {[%emt 0:58:54]} Bg5 {[%emt 1:22:43]} 28. Nb3 {[%emt 0:04:47]} Be7 {[%emt 0:00:53]} 29. a4 {[%emt 0:01:21]} Kc7 {[%emt 0:01:27]} 30. Ke2 {[%emt 0:00:10]} Bd6 {[%emt 0:01:26]} 31. Na5 {[%emt 0:07:20]} Be7 {[%emt 0:01:00]} 32. b4 {[%emt 0:00:36]} b6 {[%emt 0:00:24]} 33. Nb3 {[%emt 0:00:04]} Bd6 {[%emt 0:00:04]} 34. Bb5 {[%emt 0:00:46]} Kb7 {[%emt 0:01:03]} 35. Nc1 {[%emt 0:02:06]} a6 {[%emt 0:04:42]} 36. Bd3 {[%emt 0:00:04]} a5 {[%emt 0:00:04]} 37. bxa5 {[%emt 0:00:36]} bxa5 {[%emt 0:00:02]} 38. Bb5 {[%emt 0:00:06]} Kc7 {[%emt 0:01:40]} 39. Kd3 {[%emt 0:00:10]} Ba3 {[%emt 0:01:22]} 40. Nb3 {[%emt 0:03:14]} Kb6 {[%emt 0:00:04]} 41. Kd2 {[%emt 0:00:54]} Ne6 {[%emt 0:00:54]} 42. Kc2 {[%emt 0:02:19]} Ng5 {[%emt 0:00:30]} 43. Nd2 {[%emt 0:00:05]} Kc7 {[%emt 0:00:09]} 44. Bd3 {[%emt 0:00:24]} Bd6 {[%emt 0:00:55]} 45. Bxf5 {[%emt 0:02:20]} Kc6 {[%emt 0:00:03]} 46. Bg4 {[%emt 0:00:39]} Bc7 {[%emt 0:00:24]} 47. Kd3 {[%emt 0:00:41]} Nf7 {[%emt 0:01:04]} 48. c4 {[%emt 0:03:47]} dxc4+ {[%emt 0:00:05]} 49. Nxc4 {[%emt 0:00:03]} Kd5 {[%emt 0:00:56]} 50. Na3 {[%emt 0:02:21]} Nd6 {[%emt 0:00:29]} 51. Nb1 {[%emt 0:00:09]} Kc6 {[%emt 0:00:31]} 52. Nc3 {[%emt 0:00:10]} Bd8 {[%emt 0:00:23]} 53. Be6 {[%emt 0:00:51]} Bg5 {[%emt 0:00:36]} 54. Ne2 {[%emt 0:03:01]} Bh6 {[%emt 0:00:16]} 55. Nc1 {[%emt 0:00:25]} Bg5 {[%emt 0:00:30]} 56. Nb3 {[%emt 0:03:07]} Bd8 {[%emt 0:00:15]} 57. Kc3 {[%emt 0:00:41]} Bb6 {[%emt 0:00:54]} 58. Nc1 {[%emt 0:00:58]} Bd8 {[%emt 0:00:19]} 59. Nd3 {[%emt 0:00:38]} Bg5 {[%emt 0:00:03]} 60. Ne5+ {[%emt 0:00:04]} Kc7 {[%emt 0:00:22]} 61. Bg4 {[%emt 0:00:51]} Kb6 {[%emt 0:01:22]} 62. Nd7+ {[%emt 0:00:34]} Kc6 {[%emt 0:00:03]} 63. Nc5 {[%emt 0:00:10]} Bh6 {[%emt 0:00:41]} 64. Kd3 {[%emt 0:00:33]} Kb6 {[%emt 0:00:47]} 65. Bd7 {[%emt 0:02:14]} Kc7 {[%emt 0:00:25]} 66. Be6 {[%emt 0:00:06]} Kc6 {[%emt 0:00:19]} 67. Nd7 {[%emt 0:00:16]} Kc7 {[%emt 0:00:32]} 68. Ne5 {[%emt 0:00:30]} Bg5 {[%emt 0:00:33]} 69. Bh3 {[%emt 0:01:18]} Bh6 {[%emt 0:00:22]} 70. Kc3 {[%emt 0:00:34]} Kb6 {[%emt 0:00:24]} 71. Nd3 {[%emt 0:00:37]} Kc6 {[%emt 0:00:12]} 72. Nc5 {[%emt 0:00:16]} Kb6 {[%emt 0:00:36]} 73. Ne6 {[%emt 0:00:21]} Kc6 {[%emt 0:00:06]} 74. Kd3 {[%emt 0:00:10]} Kd5 {[%emt 0:00:57]} 75. Nd8 {[%emt 0:00:14]} Ne8 {[%emt 0:00:31]} 76. Nb7 {[%emt 0:00:47]} Bg7 {[%emt 0:00:35]} 77. Bd7 {[%emt 0:01:16]} Nd6 {[%emt 0:00:53]} 78. Nxa5 {[%emt 0:00:18]} Bxd4 {[%emt 0:00:15]} 79. Nc6 {[%emt 0:00:43]} Bc5 {[%emt 0:00:50]} 80. Ne7+ {[%emt 0:00:15]} Ke5 {[%emt 0:00:12]} 81. Ng6+ {[%emt 0:00:08]} Kf6 {[%emt 0:00:06]} 82. Nxf4 {[%emt 0:00:09]} Bf2 {[%emt 0:00:14]} 83. Bh3 {[%emt 0:00:54]} Nb7 {[%emt 0:01:12]} 84. Kc4 {[%emt 0:00:19]} Nc5 {[%emt 0:00:12]} 85. a5 {[%emt 0:00:27]} Ke5 {[%emt 0:00:04]} 86. Ne2 {[%emt 0:00:33]} Kd6 {[%emt 0:00:58]} 87. Nc3 {[%emt 0:01:16]} Ke5 {[%emt 0:00:52]} 88. Bc8 {[%emt 0:01:21]} 1-0

[Event "7th Sharjah Masters 2024"]
[Site "Sharjah"]
[Date "2024.05.15"]
[Round "2.34"]
[White "Assaubayeva, Bibisara"]
[Black "Aditya Mittal"]
[Result "0-1"]
[ECO "D44"]
[WhiteElo "2481"]
[BlackElo "2608"]
[Annotator "TA"]
[PlyCount "100"]
[EventDate "2024.05.13"]
[EventType "swiss"]
[EventCountry "UAE"]
[SourceTitle "playchess.com"]
[Source "ChessBase"]
[SourceQuality "1"]
[TimeControl "5400+30"]

{[%evp 39,100,-12,-17,-50,0,-11,0,0,3,0,31,37,26,0,0,0,0,0,0,0,0,0,0,0,0,0,0,0,0,0,0,-68,-68,-206,-206,-234,-234,-234,-234,-223,-166,-166,-166,-166,-166,-166,-166,-166,-166,-166,0,-168,-168,-168,-168,-168,-168,-247,-240,-29968,-29971,-29971,-12413]} 1. d4 {[%emt 0:00:10]} Nf6 {[%emt 0:00:01]} 2. c4 {[%emt 0:00:11]} e6 {[%emt 0:00:02]} 3. Nf3 {[%emt 0:00:07]} d5 {[%emt 0:00:01]} 4. Bg5 {[%emt 0:00:08]} dxc4 {[%emt 0:00:15]} 5. e4 {[%emt 0:00:16]} b5 {[%emt 0:01:36]} 6. a4 {[%emt 0:00:22]} c6 {[%emt 0:00:02]} 7. Nc3 {[%emt 0:00:13]} b4 {[%emt 0:00:01]} 8. Nb1 {[%emt 0:00:20]} Ba6 {[%emt 0:00:19] D44: Semi-Slav: Botvinnik System.} 9. Qc1 {[%emt 0:00:49]} c3 {[%emt 0:03:10]} 10. bxc3 {[%emt 0:00:22]} Bxf1 {[%emt 0:00:53]} 11. Kxf1 {[%emt 0:00:02]} Nbd7 {[%emt 0:12:42]} 12. Nbd2 {[%emt 0:01:20]} c5 {[%emt 0:04:14]} 13. dxc5 $146 {[%emt 0:01:38]} ({Predecessor:} 13. cxb4 cxb4 14. g3 Rc8 15. Qb2 h6 16. Bxf6 Nxf6 17. Kg2 Be7 18. Rhc1 O-O 19. Ne5 {0-1 Dizdar,G (2570)-Sveshnikov,E (2575) SLO-chT 08th 1998 (5)}) 13... bxc3 {[%emt 0:04:58]} 14. Qxc3 {[%emt 0:00:05]} Nxc5 {[%emt 0:00:36]} 15. Bxf6 gxf6 {[%emt 0:02:13]} 16. g3 {[%emt 0:30:35]} Rc8 {[%emt 0:05:06]} 17. Rc1 {[%emt 0:08:56]} Bh6 {[%emt 0:05:29]} 18. Kg2 {[%emt 0:03:34]} O-O {[%emt 0:01:45]} 19. Rc2 {[%emt 0:10:57]} Nd3 {[%emt 0:14:16]} 20. Nc4 {[%emt 0:08:44]} a5 {[%emt 0:02:10]} 21. Qa1 {[%emt 0:02:29]} (21. Qxa5 $2 Qxa5 22. Nxa5 Rxc2 $19) (21. Rd1 $2 Nf4+ 22. gxf4 Qxd1 $19) 21... Qe7 {[%emt 0:05:02]} ({Black should try} 21... Nb4 $15 22. Rc3 f5 23. exf5 Nd5) 22. Rc3 {[%emt 0:04:03]} Rfd8 {[%emt 0:05:27]} 23. Rd1 {[%emt 0:03:16]} Nb4 {[%emt 0:01:04]} 24. Nd4 {[%emt 0:03:30]} (24. Rxd8+ {simplifies} Qxd8 25. Na3 Rxc3 26. Qxc3 Bg7 27. Qd4) 24... f5 {[%emt 0:07:51]} 25. Nxa5 {[%emt 0:02:56]} (25. exf5 Qc5 26. fxe6 fxe6 (26... Rxd4 27. Nd6 $11) 27. Nxe6 Rxd1 (27... Qc6+ 28. Rf3 $15) 28. Qxd1 Qc6+ 29. Rf3 Qxe6 (29... Qxc4 $2 30. Qd7 $18) 30. Nxa5 Bg7 $15) 25... Bg7 $1 {[%emt 0:02:19]} (25... fxe4 $2 26. Nac6 Qf8 27. Nxd8 Rxd8 28. Rc4 $18) 26. Qc1 {[%emt 0:03:03]} Qe8 $1 {[%emt 0:03:53]} 27. Rxc8 {[%emt 0:05:04]} (27. exf5 Na2 (27... Bxd4 $2 28. Rxd4 exf5 29. Rxb4 $18) 28. Qg5 Nxc3 $19 (28... Rxc3 29. Nxe6 fxe6 30. Rxd8 Kf8 31. fxe6 Rc8 32. e7+ Kf7 33. Qh5+ Ke6 34. Qxe8)) 27... Rxc8 {[%emt 0:00:01]} 28. Qa3 {[%emt 0:00:30]} Bxd4 {[%emt 0:01:22]} 29. Qxb4 {[%emt 0:00:11]} (29. Rxd4 $2 Nc2 30. Qb2 Nxd4 31. Qxd4 fxe4 32. Qxe4 h5 $19) 29... Bc3 {[%emt 0:00:04]} 30. Qb6 {[%emt 0:00:05]} Kg7 {[%emt 0:04:33]} 31. Nb3 {[%emt 0:07:54]} Qxa4 {[%emt 0:01:47]} ({Much weaker is} 31... fxe4 $6 32. Nc5 $14) ({Much worse is} 31... Rb8 $6 32. Qe3 Bf6 (32... Rxb3 $2 33. Qg5+ Kf8 34. Rd8 $18) 33. Nc5 $16) 32. exf5 {[%emt 0:00:45]} Qe4+ {[%emt 0:01:01]} 33. Kg1 {[%emt 0:00:06]} Qxf5 {[%emt 0:00:45]} 34. Qe3 {[%emt 0:01:40]} Bf6 {[%emt 0:00:12]} 35. Nd4 {[%emt 0:01:50]} (35. Rd3 $11) 35... Qd5 $15 {[%emt 0:02:00]} 36. Qf3 {[%emt 0:00:08]} ({White has to play} 36. g4 $1 $15 Qa5 37. Nxe6+ fxe6 38. Rd7+ Kh8 39. Qxe6) 36... Rd8 $19 {[%emt 0:01:55]} ({And not} 36... Bxd4 37. Qxd5 Bxf2+ 38. Kxf2 $11) 37. Nxe6+ {[%emt 0:01:36]} Qxe6 {[%emt 0:00:05]} 38. Rxd8 {[%emt 0:00:05]} Bxd8 {[%emt 0:00:07]} 39. Kg2 {[%emt 0:00:07]} f5 {[%emt 0:01:17]} 40. Qc3+ {[%emt 0:00:17]} Bf6 {[%emt 0:00:17]} 41. Qc7+ {[%emt 0:00:11]} Kg6 {[%emt 0:00:35]} 42. Qb8 {[%emt 0:00:21]} Bd4 {[%emt 0:00:32]} 43. Kf1 {[%emt 0:00:44]} Qc4+ {[%emt 0:00:44]} 44. Kg2 {[%emt 0:00:21]} Qe6 {[%emt 0:01:28]} 45. Kf1 $1 {[%emt 0:00:03]} Bc5 {[%emt 0:00:34]} 46. Qb5 {[%emt 0:01:07]} Qd5 {[%emt 0:01:07]} 47. Qe8+ {[%emt 0:00:18]} Kh6 {[%emt 0:00:46]} 48. Kg1 {[%emt 0:00:21]} (48. h3 $142) 48... Qe4 $19 {[%emt 0:07:17]} 49. Qxe4 $2 {[%emt 0:02:30]} (49. Qf7 $19 Qe1+ 50. Kg2 Qxf2+ 51. Kh3 Qf1+ 52. Kh4) 49... fxe4 {[%emt 0:00:00]} 50. Kf1 {[%emt 0:00:08]} Kg5 {[%emt 0:00:05]} 0-1